fUSD/lending_fUSD_20240104
["ID","MTS","AMOUNT","RATE_DAILY","PERIOD"]
[310209299,1704400319750,-500.0,0.00037534,2]
[310209300,1704400319758,-500.0,0.00037534,2]
[310209301,1704400319769,-500.0,0.00037534,2]
[310209302,1704400319780,-500.0,0.00037534,2]
[310209303,1704400319790,-2813.94,0.00037534,2]
[310209304,1704400319801,-500.0,0.00037534,2]
[310209305,1704400319810,-500.0,0.00037534,2]
[310209306,1704400319820,-815.95,0.00037534,2]
[310209307,1704400319829,-4226.54,0.00037534,2]
[310209308,1704400319838,-1043.97,0.00037534,2]
[310209309,1704400319848,-579.28,0.00037534,2]
[310209310,1704400319858,-500.93,0.00037534,2]
[310209311,1704400319869,-1545.25,0.00037534,2]
[310209312,1704400319879,-896.7,0.00037534,2]
[310209313,1704400319889,-1118.72,0.00037534,2]
[310209314,1704400319900,-766.02,0.00037534,2]
[310209315,1704400319910,-525.53,0.00037534,2]
[310209316,1704400319921,-1839.95,0.00037534,2]
[310209317,1704400319931,-1961.18,0.00037534,2]
[310209318,1704400319940,-666.57,0.00037534,2]
[310209319,1704400319950,-650.88,0.00037534,2]
[310209320,1704400319959,-1047.53,0.00037534,2]
[310209321,1704400319969,-2743.39,0.00037534,2]
[310209322,1704400319978,-6488.11,0.00037534,2]
[310209323,1704400319988,-1207.75,0.00037534,2]
[310209324,1704400319997,-802.32,0.00037534,2]
[310209325,1704400320007,-231.74,0.00037534,2]
[310209326,1704400320017,-2300.26,0.00037534,2]
[310209327,1704400320027,-564.62,0.00037534,2]
[310209328,1704400320037,-2212.73,0.00037534,2]
[310209329,1704400320046,-500.0,0.00037534,2]
[310209330,1704400320056,-8818.63,0.00037534,2]
[310209331,1704400320066,-554.47,0.00037534,2]
[310209332,1704400320077,-1988.3,0.00037534,2]
[310209333,1704400320087,-209.62868183,0.00037534,2]
[310209334,1704400320096,-1033.94,0.00037534,2]
[310209335,1704400320105,-8023.99,0.00037534,2]
[310209336,1704400320115,-2729.72,0.00037534,2]
[310209337,1704400320124,-1421.2,0.00037534,2]
[310209338,1704400320133,-2075.81,0.00037534,2]
[310209339,1704400320143,-500.0,0.00037534,2]
[310209340,1704400320151,-500.0,0.00037534,2]
[310209341,1704400320162,-1492.24,0.00037534,2]
[310209342,1704400320171,-2507.15,0.00037534,2]
[310209343,1704400320180,-500.0,0.00037534,2]
[310209344,1704400320190,-500.0,0.00037534,2]
[310209345,1704400320199,-5784.19,0.00037534,2]
[310209346,1704400320209,-1148.25,0.00037534,2]
[310209347,1704400320219,-512.73,0.00037534,2]
[310209348,1704400320228,-500.08,0.00037534,2]
[310209349,1704400320238,-714.23,0.00037534,2]
[310209350,1704400320248,-582.44,0.00037534,2]
[310209351,1704400320258,-287.25,0.00037534,2]
[310209352,1704400320268,-500.0,0.00037534,2]
[310209353,1704400320277,-565.27,0.00037534,2]
[310209354,1704400320287,-799.36,0.00037534,2]
[310209355,1704400320296,-500.0,0.00037534,2]
[310209356,1704400320306,-1291.64,0.00037534,2]
[310209357,1704400320315,-500.0,0.00037534,2]
[310209358,1704400320324,-1533.04,0.00037534,2]
[310209359,1704400320335,-654.95,0.00037534,2]
[310209360,1704400320345,-1046.38,0.00037534,2]
[310209361,1704400320355,-1168.15,0.00037534,2]
[310209362,1704400320365,-1279.36,0.00037534,2]
[310209363,1704400320375,-774.31,0.00037534,2]
[310209364,1704400320385,-1178.66,0.00037534,2]
[310209365,1704400320397,-2705.72,0.00037534,2]
[310209366,1704400320408,-540.01,0.00037534,2]
[310209367,1704400320417,-800.68,0.00037534,2]
[310209368,1704400320428,-1033.15,0.00037534,2]
[310209369,1704400320438,-683.02,0.00037534,2]
[310209370,1704400320447,-664.5,0.00037534,2]
[310209371,1704400320458,-5429.5,0.00037534,2]
[310209372,1704400320469,-787.99,0.00037534,2]
[310209373,1704400320478,-500.0,0.00037534,2]
[310209374,1704400320489,-1185.9,0.00037534,2]
[310209375,1704400320498,-502.99,0.00037534,2]
[310209376,1704400320507,-803.67,0.00037534,2]
[310209377,1704400320517,-703.08,0.00037534,2]
[310209378,1704400320526,-931.91,0.00037534,2]
[310209379,1704400320535,-3045.47,0.00037534,2]
[310209380,1704400320544,-500.0,0.00037534,2]
[310209381,1704400320553,-924.28,0.00037534,2]
[310209382,1704400320562,-612.45,0.00037534,2]
[310209383,1704400320572,-1719.17,0.00037534,2]
[310209384,1704400320581,-500.0,0.00037534,2]
[310209385,1704400320590,-1664.58,0.00037534,2]
[310209386,1704400320599,-650.67,0.00037534,2]
[310209387,1704400320612,-837.7,0.00037534,2]
[310209388,1704400320621,-651.85,0.00037534,2]
[310209389,1704400320630,-572.72144032,0.00037534,2]
[310209390,1704400320640,-1763.88,0.00037534,2]
[310209391,1704400320649,-5455.26,0.00037534,2]
[310209392,1704400320658,-595.32,0.00037534,2]
[310209393,1704400320668,-500.0,0.00037534,2]
[310209394,1704400320677,-864.85,0.00037534,2]
[310209395,1704400320686,-500.0,0.00037534,2]
[310209396,1704400320695,-618.44,0.00037534,2]
[310209397,1704400320704,-1928.75,0.00037534,2]
[310209398,1704400320713,-500.0,0.00037534,2]
[310209399,1704400320722,-575.7,0.00037534,2]
[310209400,1704400320732,-2873.21,0.00037534,2]
[310209401,1704400320742,-589.02,0.00037534,2]
[310209402,1704400320751,-500.0,0.00037534,2]
[310209403,1704400320761,-500.0,0.00037534,2]
[310209404,1704400320771,-501.82,0.00037534,2]
[310209405,1704400320781,-500.0,0.00037534,2]
[310209406,1704400320790,-500.0,0.00037534,2]
[310209407,1704400320800,-1565.07,0.00037534,2]
[310209408,1704400320809,-1472.89,0.00037534,2]
[310209409,1704400320819,-6496.65,0.00037534,2]
[310209410,1704400320829,-902.0,0.00037534,2]
[310209411,1704400320839,-500.0,0.00037534,2]
[310209412,1704400320850,-864.86,0.00037534,2]
[310209413,1704400320859,-539.42,0.00037534,2]
[310209414,1704400320870,-659.36,0.00037534,2]
[310209415,1704400320880,-2834.51,0.00037534,2]
[310209416,1704400320890,-500.0,0.00037534,2]
[310209417,1704400320902,-535.67,0.00037534,2]
[310209418,1704400320913,-772.31,0.00037534,2]
[310209419,1704400320923,-730.25,0.00037534,2]
[310209420,1704400320933,-500.0,0.00037534,2]
[310209421,1704400320943,-500.0,0.00037534,2]
[310209422,1704400320954,-1511.83,0.00037534,2]
[310209423,1704400320963,-597.99,0.00037534,2]
[310209424,1704400320973,-1373.46,0.00037534,2]
[310209425,1704400320983,-500.0,0.00037534,2]
[310209426,1704400320994,-500.0,0.00037534,2]
[310209427,1704400321004,-1411.58,0.00037534,2]
[310209428,1704400321013,-844.92,0.00037534,2]
[310209429,1704400321023,-1122.72,0.00037534,2]
[310209430,1704400321033,-500.0,0.00037534,2]
[310209431,1704400321042,-938.79,0.00037534,2]
[310209432,1704400321051,-700.27,0.00037534,2]
[310209433,1704400321061,-2603.65,0.00037534,2]
[310209434,1704400321072,-500.0,0.00037534,2]
[310209435,1704400321082,-690.56,0.00037534,2]
[310209436,1704400321092,-1114.57,0.00037534,2]
[310209437,1704400321101,-1863.03,0.00037534,2]
[310209438,1704400321111,-625.26,0.00037534,2]
[310209439,1704400321121,-1822.1,0.00037534,2]
[310209440,1704400321131,-524.64,0.00037534,2]
[310209441,1704400321141,-715.91,0.00037534,2]
[310209442,1704400321151,-1359.04,0.00037534,2]
[310209443,1704400321160,-167.0,0.00037542,2]
[310209444,1704400321169,-16208.0,0.00037562,20]
[310209445,1704400321179,-2004.14,0.00037565,2]
[310209446,1704400321188,-150.0,0.0003759,4]
[310209447,1704400321197,-160.13143819,0.00037595,14]
[310209448,1704400321206,-43589.63,0.000376,7]
[310209449,1704400321215,-25696.93,0.000376,7]
[310209450,1704400321225,-317.32,0.0003761,2]
[310209451,1704400321234,-150.0,0.00037626,2]
[310209452,1704400321244,-619.11,0.00037652,2]
[310209453,1704400321253,-193.11401548,0.00037656,14]
[310209454,1704400321263,-500.0,0.00037658,7]
[310209455,1704400321273,-325.61963289,0.0003766,14]
[310209456,1704400321282,-514.30042441,0.00037665,15]
[310209457,1704400321291,-980.77795963,0.00037665,15]
[310209458,1704400321301,-500.0,0.00037681,7]
[310209459,1704400321310,-500.0,0.00037681,7]
[310209460,1704400321319,-152.45574514,0.00037682,14]
[310209461,1704400321328,-166.27,0.00037687,2]
[310209462,1704400321337,-6528.34,0.000377,7]
[310209463,1704400321347,-153.68,0.000377,3]
[310209464,1704400321356,-153.68,0.000377,3]
[310209465,1704400321365,-153.68,0.000377,3]
[310209466,1704400321374,-153.68,0.000377,3]
[310209467,1704400321383,-153.68,0.000377,3]
[310209468,1704400321395,-153.68,0.000377,3]
[310209469,1704400321404,-153.68,0.000377,3]
[310209470,1704400321414,-153.68,0.000377,3]
[310209471,1704400321423,-153.68,0.000377,3]
[310209472,1704400321432,-153.68,0.000377,3]
[310209473,1704400321441,-157.46,0.000377,3]
[310209474,1704400321450,-157.46,0.000377,3]
[310209475,1704400321460,-157.46,0.000377,3]
[310209476,1704400321470,-154.23478519,0.0003772,14]
[310209477,1704400321479,-319.07095764,0.00037743,20]
[310209478,1704400321490,-1087.0,0.00037743,20]
[310209479,1704400321499,-464.0,0.00037743,20]
[310209480,1704400321508,-325.61963289,0.00037745,14]
[310209481,1704400321517,-416.0,0.00037767,4]
[310209482,1704400321526,-325.61963289,0.00037785,14]
[310209483,1704400321536,-157.40104,0.00037798,2]
[310209484,1704400321545,-7369.96383474,0.000378,7]
[310209485,1704400321555,-150.08384584,0.000378,30]
[310209486,1704400321566,-4176.04253,0.000378,6]
[310209487,1704400321575,-1105.69,0.00037808,2]
[310209488,1704400321586,-654.3,0.00037808,2]
[310209489,1704400321595,-809.33,0.00037808,2]
[310209490,1704400321604,-500.0,0.00037808,2]
[310209491,1704400321615,-570.2,0.00037808,2]
[310209492,1704400321625,-500.0,0.00037808,2]
[310209493,1704400321634,-500.0,0.00037808,2]
[310209494,1704400321643,-500.0,0.00037808,2]
[310209495,1704400321654,-500.0,0.00037808,2]
[310209496,1704400321664,-826.26,0.00037808,2]
[310209497,1704400321673,-500.0,0.00037808,2]
[310209498,1704400321682,-1785.82,0.00037808,2]
[310209499,1704400321691,-541.66,0.00037808,2]
[310209500,1704400321701,-702.0,0.00037808,2]
[310209501,1704400321711,-713.92,0.00037808,2]
[310209502,1704400321720,-508.08,0.00037808,2]
[310209503,1704400321730,-500.0,0.00037808,2]
[310209504,1704400321739,-605.7,0.00037808,2]
[310209505,1704400321749,-500.0,0.00037808,2]
[310209506,1704400321758,-617.34,0.00037808,2]
[310209507,1704400321767,-1053.81,0.00037808,2]
[310209508,1704400321776,-500.0,0.00037808,2]
[310209509,1704400321785,-500.0,0.00037808,2]
[310209510,1704400321794,-500.0,0.00037808,2]
[310209511,1704400321804,-637.91,0.00037808,2]
[310209512,1704400321812,-642.96,0.00037808,2]
[310209513,1704400321821,-322.09830416,0.00037808,2]
[310209514,1704400321829,-500.0,0.00037808,2]
[310209515,1704400321838,-500.0,0.00037808,2]
[310209516,1704400321848,-500.0,0.00037808,2]
[310209517,1704400321858,-500.0,0.00037808,2]
[310209518,1704400321868,-583.92,0.00037808,2]
[310209519,1704400321878,-313.93899527,0.00037808,2]
[310209520,1704400321888,-500.0,0.00037808,2]
[310209521,1704400321897,-1262.62,0.00037808,2]
[310209522,1704400321907,-644.12,0.00037808,2]
[310209523,1704400321916,-500.0,0.00037808,2]
[310209524,1704400321925,-501.37,0.00037808,2]
[310209525,1704400321935,-500.0,0.00037808,2]
[310209526,1704400321944,-500.0,0.00037808,2]
[310209527,1704400321953,-511.59,0.00037808,2]
[310209528,1704400321961,-389.00424225,0.00037808,2]
[310209529,1704400321972,-500.0,0.00037808,2]
[310209530,1704400321982,-159.65,0.00037808,2]
[310209531,1704400321993,-500.0,0.00037808,2]
[310209532,1704400322003,-984.97,0.00037808,2]
[310209533,1704400322013,-500.0,0.00037808,2]
[310209534,1704400322023,-500.0,0.00037808,2]
[310209535,1704400322036,-500.0,0.00037808,2]
[310209536,1704400322046,-2813.94,0.00037808,2]
[310209537,1704400322056,-500.0,0.00037808,2]
[310209538,1704400322066,-500.0,0.00037808,2]
[310209539,1704400322075,-815.95,0.00037808,2]
[310209540,1704400322085,-4226.54,0.00037808,2]
[310209541,1704400322095,-1043.97,0.00037808,2]
[310209542,1704400322104,-579.28,0.00037808,2]
[310209543,1704400322114,-500.93,0.00037808,2]
[310209544,1704400322124,-1545.25,0.00037808,2]
[310209545,1704400322135,-896.7,0.00037808,2]
[310209546,1704400322145,-1118.72,0.00037808,2]
[310209547,1704400322155,-766.02,0.00037808,2]
[310209548,1704400322165,-525.53,0.00037808,2]
[310209549,1704400322175,-1839.95,0.00037808,2]
[310209550,1704400322185,-1961.18,0.00037808,2]
[310209551,1704400322195,-666.57,0.00037808,2]
[310209552,1704400322205,-650.88,0.00037808,2]
[310209553,1704400322214,-1047.53,0.00037808,2]
[310209554,1704400322224,-2743.39,0.00037808,2]
[310209555,1704400322233,-6488.11,0.00037808,2]
[310209556,1704400322243,-1207.75,0.00037808,2]
[310209557,1704400322253,-2300.26,0.00037808,2]
[310209558,1704400322262,-564.62,0.00037808,2]
[310209559,1704400322272,-802.32,0.00037808,2]
[310209560,1704400322281,-2212.73,0.00037808,2]
[310209561,1704400322290,-500.0,0.00037808,2]
[310209562,1704400322300,-8818.63,0.00037808,2]
[310209563,1704400322310,-554.47,0.00037808,2]
[310209564,1704400322320,-1988.3,0.00037808,2]
[310209565,1704400322329,-1033.94,0.00037808,2]
[310209566,1704400322339,-8023.99,0.00037808,2]
[310209567,1704400322349,-2729.72,0.00037808,2]
[310209569,1704400322359,-1421.2,0.00037808,2]
[310209570,1704400322369,-2075.81,0.00037808,2]
[310209571,1704400322378,-500.0,0.00037808,2]
[310209573,1704400322388,-500.0,0.00037808,2]
[310209574,1704400322399,-1492.24,0.00037808,2]
[310209575,1704400322412,-2507.15,0.00037808,2]
[310209577,1704400322421,-579.45,0.00037808,2]
[310209578,1704400322432,-500.0,0.00037808,2]
[310209579,1704400322442,-5784.19,0.00037808,2]
[310209580,1704400322451,-1148.25,0.00037808,2]
[310209581,1704400322462,-512.73,0.00037808,2]
[310209582,1704400322471,-500.08,0.00037808,2]
[310209583,1704400322481,-714.23,0.00037808,2]
[310209584,1704400322491,-582.44,0.00037808,2]
[310209585,1704400322501,-388.2919394,0.00037808,2]
[310209586,1704400322511,-565.27,0.00037808,2]
[310209587,1704400322521,-799.36,0.00037808,2]
[310209588,1704400322530,-500.0,0.00037808,2]
[310209589,1704400322539,-1291.64,0.00037808,2]
[310209590,1704400322549,-500.0,0.00037808,2]
[310209591,1704400322559,-1533.04,0.00037808,2]
[310209592,1704400322568,-654.95,0.00037808,2]
[310209593,1704400322578,-1046.38,0.00037808,2]
[310209594,1704400322588,-1168.15,0.00037808,2]
[310209595,1704400322598,-1279.36,0.00037808,2]
[310209596,1704400322608,-774.31,0.00037808,2]
[310209597,1704400322617,-1178.66,0.00037808,2]
[310209598,1704400322627,-2705.72,0.00037808,2]
[310209599,1704400322636,-540.01,0.00037808,2]
[310209600,1704400322646,-800.68,0.00037808,2]
[310209601,1704400322656,-1033.15,0.00037808,2]
[310209602,1704400322670,-683.02,0.00037808,2]
[310209603,1704400322680,-664.5,0.00037808,2]
[310209604,1704400322690,-5429.5,0.00037808,2]
[310209605,1704400322699,-787.99,0.00037808,2]
[310209606,1704400322709,-500.0,0.00037808,2]
[310209607,1704400322720,-1185.9,0.00037808,2]
[310209608,1704400322730,-502.99,0.00037808,2]
[310209609,1704400322742,-803.67,0.00037808,2]
[310209610,1704400322751,-703.08,0.00037808,2]
[310209611,1704400322762,-931.91,0.00037808,2]
[310209612,1704400322773,-3045.47,0.00037808,2]
[310209613,1704400322782,-500.0,0.00037808,2]
[310209614,1704400322792,-924.28,0.00037808,2]
[310209615,1704400322802,-612.45,0.00037808,2]
[310209616,1704400322812,-1719.17,0.00037808,2]
[310209617,1704400322822,-500.0,0.00037808,2]
[310209618,1704400322831,-1664.58,0.00037808,2]
[310209619,1704400322841,-650.67,0.00037808,2]
[310209620,1704400322851,-837.7,0.00037808,2]
[310209621,1704400322861,-651.85,0.00037808,2]
[310209622,1704400322874,-1763.88,0.00037808,2]
[310209623,1704400322885,-5455.26,0.00037808,2]
[310209624,1704400322896,-595.32,0.00037808,2]
[310209625,1704400322905,-864.85,0.00037808,2]
[310209626,1704400322915,-500.0,0.00037808,2]
[310209627,1704400322926,-618.44,0.00037808,2]
[310209628,1704400322936,-1928.75,0.00037808,2]
[310209629,1704400322945,-575.7,0.00037808,2]
[310209630,1704400322955,-2873.21,0.00037808,2]
[310209631,1704400322965,-589.02,0.00037808,2]
[310209632,1704400322974,-500.0,0.00037808,2]
[310209633,1704400322984,-500.0,0.00037808,2]
[310209634,1704400322997,-501.82,0.00037808,2]
[310209635,1704400323007,-500.0,0.00037808,2]
[310209636,1704400323017,-1565.07,0.00037808,2]
[310209637,1704400323028,-1472.89,0.00037808,2]
[310209638,1704400323038,-902.0,0.00037808,2]
[310209639,1704400323048,-500.0,0.00037808,2]
[310209640,1704400323059,-6496.65,0.00037808,2]
[310209641,1704400323069,-864.86,0.00037808,2]
[310209642,1704400323079,-539.42,0.00037808,2]
[310209643,1704400323089,-659.36,0.00037808,2]
[310209644,1704400323100,-2834.51,0.00037808,2]
[310209645,1704400323110,-500.0,0.00037808,2]
[310209646,1704400323120,-535.67,0.00037808,2]
[310209647,1704400323131,-772.31,0.00037808,2]
[310209648,1704400323141,-730.25,0.00037808,2]
[310209649,1704400323151,-500.0,0.00037808,2]
[310209650,1704400323161,-500.0,0.00037808,2]
[310209651,1704400323171,-1511.83,0.00037808,2]
[310209652,1704400323181,-597.99,0.00037808,2]
[310209653,1704400323191,-1373.46,0.00037808,2]
[310209654,1704400323201,-500.0,0.00037808,2]
[310209655,1704400323210,-500.0,0.00037808,2]
[310209656,1704400323220,-1411.58,0.00037808,2]
[310209657,1704400323230,-844.92,0.00037808,2]
[310209658,1704400323241,-1122.72,0.00037808,2]
[310209659,1704400323251,-500.0,0.00037808,2]
[310209660,1704400323261,-938.79,0.00037808,2]
[310209661,1704400323271,-700.27,0.00037808,2]
[310209662,1704400323281,-2603.65,0.00037808,2]
[310209663,1704400323290,-500.0,0.00037808,2]
[310209664,1704400323301,-690.56,0.00037808,2]
[310209665,1704400323311,-1114.57,0.00037808,2]
[310209666,1704400323321,-1863.03,0.00037808,2]
[310209667,1704400323331,-625.26,0.00037808,2]
[310209668,1704400323342,-1822.1,0.00037808,2]
[310209669,1704400323352,-524.64,0.00037808,2]
[310209670,1704400323362,-715.91,0.00037808,2]
[310209671,1704400323372,-1359.04,0.00037808,2]
[310209672,1704400323382,-151.0,0.0003783,2]
[310209673,1704400323392,-220.71423699,0.00037836,14]
[310209674,1704400323403,-500.0,0.00037858,2]
[310209675,1704400323413,-325.61963289,0.00037876,14]
[310209676,1704400323424,-1898.2001,0.00037876,2]
[310209677,1704400323434,-7112.242479,0.00037884,7]
[310209678,1704400323443,-2664.086059,0.00037884,7]
[310209679,1704400323454,-150.0,0.00037899,2]
[310209680,1704400323464,-43589.63,0.000379,7]
[310209681,1704400323474,-25696.93,0.000379,7]
[310209682,1704400323484,-150.0,0.000379,27]
[310209683,1704400323493,-666330.180538,0.000379,2]
[310209684,1704400323504,-828.8315522,0.000379,2]
[310209685,1704400323514,-10000.0,0.000379,20]
[310209686,1704400323524,-151.3449159,0.00037913,14]
[310209687,1704400323534,-154.23478521,0.00037917,14]
[310209688,1704400323543,-325.61963289,0.00037925,14]
[310209689,1704400323553,-19638.0,0.00037935,2]
[310209690,1704400323564,-999.129,0.00037935,2]
[310209691,1704400323574,-833.0,0.00037935,2]
[310209692,1704400323584,-221.679,0.00037935,2]
[310209693,1704400323594,-1253.0,0.00037935,2]
[310209694,1704400323604,-1234.0,0.00037935,2]
[310209695,1704400323615,-16208.0,0.00037941,20]
[310209696,1704400323625,-500.0,0.00037955,7]
[310209697,1704400323635,-500.0,0.00037955,7]
[310209698,1704400323899,-325.61963289,0.00037973,14]
[310209699,1704400323925,-612.4111047,0.00037974,2]
[310209700,1704400323935,-150.0,0.00037983,2]
[310209701,1704400323945,-150.0,0.00037983,2]
[310209702,1704400323955,-164672.61992885,0.00037984,2]
[310209703,1704400323965,-16014.42354807,0.00037984,2]
[310209704,1704400323974,-12763.46834026,0.00037984,2]
[310209705,1704400323984,-1210.0,0.00037984,2]
[310209706,1704400323995,-2099.92825082,0.00037984,2]
[310209707,1704400324005,-331.28428105,0.00037984,2]
[310209708,1704400324015,-2861.75273656,0.00037984,2]
[310209709,1704400324026,-4346.5531256,0.00037984,2]
[310209710,1704400324037,-1447.14392083,0.00037984,2]
[310209711,1704400324048,-7016.94423156,0.00037984,2]
[310209712,1704400324058,-183.11512529,0.00037984,2]
[310209713,1704400324069,-2601.94952465,0.00037984,2]
[310209714,1704400324081,-2336.04310797,0.00037984,2]
[310209715,1704400324090,-2542.76039312,0.00037984,2]
[310209716,1704400324099,-85181.54073784,0.00037984,2]
[310209717,1704400324109,-3092.40102716,0.00037984,2]
[310209718,1704400324119,-165.85078124,0.00037984,2]
[310209719,1704400324129,-9917.96342074,0.00037984,2]
[310209720,1704400324138,-3628.4229897,0.00037984,2]
[310209721,1704400324148,-11253.65984077,0.00037984,2]
[310209722,1704400324157,-1017.11340357,0.00037984,2]
[310209723,1704400324167,-3530.83046378,0.00037984,2]
[310209724,1704400324177,-171.93021369,0.00037984,2]
[310209725,1704400324186,-994.25720652,0.00037984,2]
[310209726,1704400324196,-159.80225178,0.00037984,2]
[310209727,1704400324206,-8785.22491336,0.00037984,2]
[310209728,1704400324215,-1247.56833988,0.00037984,2]
[310209729,1704400324224,-4703.41044447,0.00037984,2]
[310209730,1704400324234,-1048.02675292,0.00037984,2]
[310209731,1704400324243,-6691.86728951,0.00037984,2]
[310209732,1704400324252,-21594.19597289,0.00037984,2]
[310209733,1704400324262,-12212.15064735,0.00037984,2]
[310209734,1704400324271,-1828.28467977,0.00037984,2]
[310209735,1704400324281,-643.0,0.00037984,2]
[310209736,1704400324290,-923.09936139,0.00037984,2]
[310209737,1704400324299,-545.23428656,0.00037984,2]
[310209738,1704400324309,-759.69774986,0.00037984,2]
[310209739,1704400324319,-8366.85094094,0.00037984,2]
[310209740,1704400324329,-132412.10395439,0.00037984,7]
[310209741,1704400324339,-40353.31442413,0.00037984,7]
[310209742,1704400324348,-656.96048431,0.00037984,10]
[310209743,1704400324358,-1000.0,0.00037984,10]
[310209744,1704400324367,-500.0,0.00037984,10]
[310209745,1704400324377,-1002.23765113,0.00037984,5]
[310209746,1704400324387,-1046.89474888,0.00037984,7]
[310209747,1704400324396,-4012.08970206,0.00037984,20]
[310209748,1704400324409,-152.61679842,0.00037984,10]
[310209749,1704400324422,-300.0,0.00037984,2]
[310209750,1704400324432,-300.0,0.00037984,2]
[310209751,1704400324442,-528.99816383,0.00037984,5]
[310209752,1704400324451,-1867.99034873,0.00037984,5]
[310209753,1704400324461,-919.4871368,0.00037984,5]
[310209754,1704400324471,-557.61752414,0.00037984,5]
[310209755,1704400324481,-1616.85544216,0.00037984,2]
[310209756,1704400324492,-17694.4432755,0.00037984,5]
[310209757,1704400324502,-4651.39159475,0.00037984,5]
[310209758,1704400324512,-923.41628493,0.00037984,5]
[310209759,1704400324522,-228.90236261,0.00037984,5]
[310209760,1704400324532,-468.7911056,0.00037984,7]
[310209761,1704400324543,-24425.02034039,0.00037984,5]
[310209762,1704400324553,-18550.8997301,0.00037984,5]
[310209763,1704400324563,-329.90535957,0.00037984,5]
[310209764,1704400324572,-10249.14380747,0.00037984,2]
[310209765,1704400324581,-5027.50195437,0.00037984,4]
[310209766,1704400324591,-163.09782735,0.00037984,2]
[310209767,1704400324601,-198.37190936,0.00037984,2]
[310209768,1704400324611,-1207.79479788,0.00037984,4]
[310209769,1704400324621,-20233.50009581,0.00037984,2]
[310209770,1704400324630,-4391.53983917,0.00037984,4]
[310209771,1704400324640,-3013.92252741,0.00037984,2]
[310209772,1704400324650,-10000.0,0.00037984,15]
[310209773,1704400324659,-367.67825997,0.00037984,23]
[310209774,1704400324669,-167.36221848,0.00037984,7]
[310209775,1704400324678,-26284.02489371,0.00037984,2]
[310209776,1704400324688,-40565.65378118,0.00037984,4]
[310209777,1704400324697,-4248.0248911,0.00037984,2]
[310209778,1704400324706,-550.0,0.00037984,2]
[310209779,1704400324716,-994.48618577,0.00037984,2]
[310209780,1704400324725,-10191.85739589,0.00037984,2]
[310209781,1704400324734,-161158.48060003,0.00037984,2]
[310209782,1704400324744,-14245.96303513,0.00037984,2]
[310209783,1704400324754,-6000.0,0.00037984,2]
[310209784,1704400324763,-13939.39705969,0.00037984,2]
[310209785,1704400324773,-339.55468049,0.00037984,2]
[310209786,1704400324782,-200.0,0.00037984,2]
[310209787,1704400324791,-502.78324422,0.00037984,2]
[310209788,1704400324803,-597.00946077,0.00037984,2]
[310209789,1704400324814,-204.70643654,0.00037984,2]
[310209790,1704400324825,-146201.93056009,0.00037984,2]
[310209791,1704400324835,-427.54349465,0.00037984,2]
[310209792,1704400324844,-1016.28254526,0.00037984,2]
[310209793,1704400324854,-4305.14707079,0.00037984,2]
[310209794,1704400324864,-2500.0,0.00037984,2]
[310209795,1704400324875,-551.9193851,0.00037984,2]
[310209796,1704400324885,-2267.00191091,0.00037984,2]
[310209797,1704400324895,-26478.8903537,0.00037984,2]
[310209798,1704400324905,-229.34427861,0.00037984,2]
[310209799,1704400324915,-513.55954421,0.00037984,2]
[310209800,1704400324924,-1574.57770366,0.00037984,2]
[310209801,1704400324935,-425019.07784209,0.00037984,2]